fUST/lending_fUST_20250228
["ID","MTS","AMOUNT","RATE_DAILY","PERIOD"]
[354778180,1740685847850,-500.0,0.00050136,120]
[354778181,1740685847860,-500.0,0.00050136,120]
[354778182,1740685847870,-500.0,0.00050136,120]
[354778183,1740685847880,-899.05,0.00050136,120]
[354778184,1740685847889,-500.0,0.00050136,120]
[354778185,1740685847899,-500.0,0.00050136,120]
[354778186,1740685847909,-500.0,0.00050136,120]
[354778187,1740685847919,-604.6,0.00050136,120]
[354778188,1740685847928,-500.0,0.00050136,120]
[354778189,1740685847938,-500.0,0.00050136,120]
[354778190,1740685847948,-500.0,0.00050136,120]
[354778191,1740685847957,-500.0,0.00050136,120]
[354778192,1740685847967,-500.0,0.00050136,120]
[354778193,1740685847977,-1460.97,0.00050136,120]
[354778194,1740685847987,-500.0,0.00050136,120]
[354778195,1740685847997,-500.0,0.00050136,120]
[354778196,1740685848008,-906.67,0.00050136,120]
[354778197,1740685848018,-448.1,0.00050136,120]
[354778198,1740685848028,-500.0,0.00050136,120]
[354778199,1740685848038,-874.77,0.00050136,120]
[354778200,1740685848048,-383.50192534,0.00050136,120]
[354778201,1740685848058,-500.0,0.00050136,120]
[354778202,1740685848067,-500.0,0.00050136,120]
[354778203,1740685848077,-9146.17,0.00050136,6]
[354778204,1740685848086,-503.15,0.00050136,120]
[354778205,1740685848100,-500.0,0.00050136,120]
[354778206,1740685848109,-500.0,0.00050136,120]
[354778207,1740685848119,-551.03,0.00050136,120]
[354778208,1740685848129,-2452.99,0.00050136,120]
[354778209,1740685848139,-500.0,0.00050136,120]
[354778210,1740685848149,-875.16,0.00050136,120]
[354778211,1740685848159,-500.0,0.00050136,120]
[354778212,1740685848169,-2346.79,0.00050136,120]
[354778213,1740685848179,-500.0,0.00050136,120]
[354778214,1740685848188,-713.69,0.00050136,120]
[354778215,1740685848198,-500.0,0.00050136,120]
[354778216,1740685848208,-500.0,0.00050136,120]
[354778217,1740685848217,-2847.46,0.00050136,120]
[354778218,1740685848227,-500.0,0.00050136,120]
[354778219,1740685848237,-500.0,0.00050136,120]
[354778220,1740685848247,-500.0,0.00050136,120]
[354778221,1740685848259,-1019.41,0.00050136,120]
[354778222,1740685848269,-500.0,0.00050136,120]
[354778223,1740685848278,-500.0,0.00050136,120]
[354778224,1740685848288,-6222.02,0.00050136,120]
[354778225,1740685848300,-5686.45,0.00050136,120]
[354778226,1740685848310,-500.0,0.00050136,120]
[354778227,1740685848320,-500.0,0.00050136,120]
[354778228,1740685848330,-524.55,0.00050136,120]
[354778229,1740685848341,-6530.44,0.00050136,120]
[354778230,1740685848352,-1263.78,0.00050136,120]
[354778231,1740685848362,-1699.71,0.00050136,120]
[354778232,1740685848372,-500.0,0.00050136,120]
[354778233,1740685848382,-500.0,0.00050136,120]
[354778234,1740685848392,-3322.36,0.00050136,120]
[354778235,1740685848401,-539.36,0.00050136,120]
[354778236,1740685848411,-500.0,0.00050136,120]
[354778237,1740685848421,-606.98,0.00050136,120]
[354778238,1740685848431,-500.0,0.00050136,120]
[354778239,1740685848442,-2063.97,0.00050136,120]
[354778240,1740685848452,-500.0,0.00050136,120]
[354778241,1740685848462,-500.0,0.00050136,120]
[354778242,1740685848472,-585.15,0.00050136,120]
[354778243,1740685848482,-500.0,0.00050136,120]
[354778244,1740685848492,-1406.16,0.00050136,120]
[354778245,1740685848502,-275.27,0.00050136,120]
[354778246,1740685848515,-48927.94,0.00050136,7]
[354778247,1740685848525,-500.0,0.00050136,120]
[354778248,1740685848535,-500.0,0.00050136,120]
[354778249,1740685848545,-566.66,0.00050136,120]
[354778250,1740685848555,-500.0,0.00050136,120]
[354778251,1740685848565,-500.0,0.00050136,120]
[354778252,1740685848575,-1542.96,0.00050136,120]
[354778253,1740685848584,-500.0,0.00050136,120]
[354778254,1740685848594,-5695.27,0.00050136,120]
[354778255,1740685848605,-150.33,0.00050136,30]
[354778256,1740685848615,-500.0,0.00050136,120]
[354778257,1740685848625,-500.0,0.00050136,120]
[354778258,1740685848634,-1820.73,0.00050136,120]
[354778259,1740685848645,-500.0,0.00050136,30]
[354778260,1740685848655,-500.0,0.00050136,120]
[354778261,1740685848665,-500.0,0.00050136,120]
[354778262,1740685848675,-553.75,0.00050136,120]
[354778263,1740685848684,-895.44,0.00050136,120]
[354778264,1740685848694,-500.0,0.00050136,120]
[354778265,1740685848704,-972.36,0.00050136,120]
[354778266,1740685848715,-500.0,0.00050136,120]
[354778267,1740685848726,-500.0,0.00050136,120]
[354778268,1740685848735,-150.33,0.00050163,30]
[354778269,1740685848745,-500.0,0.00050173,10]
[354778270,1740685848757,-500.60914169,0.00050173,5]
[354778271,1740685848768,-150.33,0.00050191,30]
[354778272,1740685848778,-1522.97,0.000502,30]
[354778273,1740685848788,-248.35,0.00050218,30]
[354778274,1740685848798,-205.34500362,0.00050233,11]
[354778275,1740685848808,-1445.89157712,0.0005031,2]
[354778276,1740685848818,-351.91286084,0.0005041,120]
[354778277,1740685848828,-500.0,0.0005041,120]
[354778278,1740685848838,-500.0,0.0005041,120]
[354778279,1740685848847,-500.0,0.0005041,120]
[354778280,1740685848858,-500.0,0.0005041,120]
[354778281,1740685848868,-500.0,0.0005041,120]
[354778282,1740685848877,-500.0,0.0005041,120]
[354778283,1740685848887,-500.0,0.0005041,120]
[354778284,1740685848897,-500.0,0.0005041,120]
[354778285,1740685848907,-500.0,0.0005041,120]
[354778286,1740685848917,-500.0,0.0005041,120]
[354778287,1740685848927,-500.0,0.0005041,120]
[354778288,1740685848936,-528.98,0.0005041,120]
[354778289,1740685848946,-500.0,0.0005041,120]
[354778290,1740685848956,-500.0,0.0005041,120]
[354778291,1740685848966,-500.0,0.0005041,120]
[354778292,1740685848976,-567.43,0.0005041,120]
[354778293,1740685848986,-500.0,0.0005041,120]
[354778294,1740685848995,-500.0,0.0005041,120]
[354778295,1740685849005,-546.87,0.0005041,120]
[354778296,1740685849015,-544.26,0.0005041,120]
[354778297,1740685849025,-1136.94,0.0005041,120]
[354778298,1740685849035,-665.31,0.0005041,120]
[354778299,1740685849045,-760.41,0.0005041,120]
[354778300,1740685849054,-1016.95,0.0005041,120]
[354778301,1740685849065,-852.59,0.0005041,120]
[354778302,1740685849075,-221.43989874,0.0005041,120]
[354778303,1740685849085,-500.0,0.0005041,120]
[354778304,1740685849095,-500.0,0.0005041,120]
[354778305,1740685849107,-500.0,0.0005041,120]
[354778306,1740685849117,-500.0,0.0005041,120]
[354778307,1740685849127,-500.0,0.0005041,120]
[354778308,1740685849137,-767.12,0.0005041,120]
[354778309,1740685849147,-167.81722028,0.0005041,120]
[354778310,1740685849158,-500.0,0.0005041,120]
[354778311,1740685849168,-500.0,0.0005041,120]
[354778312,1740685849178,-500.0,0.0005041,120]
[354778313,1740685849290,-500.0,0.0005041,120]
[354778314,1740685849302,-500.0,0.0005041,120]
[354778315,1740685849311,-500.0,0.0005041,120]
[354778316,1740685849321,-1135.57,0.0005041,120]
[354778317,1740685849331,-500.0,0.0005041,120]
[354778318,1740685849342,-511.6,0.0005041,120]
[354778319,1740685849353,-500.0,0.0005041,120]
[354778320,1740685849364,-500.0,0.0005041,120]
[354778321,1740685849375,-500.0,0.0005041,120]
[354778322,1740685849385,-766.33,0.0005041,120]
[354778323,1740685849395,-596.55,0.0005041,120]
[354778324,1740685849405,-634.43,0.0005041,120]
[354778325,1740685849414,-500.0,0.0005041,120]
[354778326,1740685849423,-500.0,0.0005041,120]
[354778327,1740685849433,-500.0,0.0005041,120]
[354778328,1740685849443,-528.66,0.0005041,120]
[354778329,1740685849454,-545.4,0.0005041,120]
[354778330,1740685849463,-500.0,0.0005041,120]
[354778331,1740685849473,-500.0,0.0005041,120]
[354778332,1740685849482,-500.0,0.0005041,120]
[354778333,1740685849492,-500.0,0.0005041,120]
[354778334,1740685849501,-500.0,0.0005041,120]
[354778335,1740685849511,-967.01,0.0005041,120]
[354778336,1740685849521,-500.0,0.0005041,120]
[354778337,1740685849530,-500.0,0.0005041,120]
[354778338,1740685849539,-500.0,0.0005041,120]
[354778339,1740685849549,-500.0,0.0005041,120]
[354778340,1740685849558,-500.0,0.0005041,120]
[354778341,1740685849568,-685.66,0.0005041,120]
[354778342,1740685849578,-429.7205859,0.0005041,120]
[354778343,1740685849587,-676.91,0.0005041,120]
[354778344,1740685849597,-500.0,0.0005041,120]
[354778345,1740685849606,-3384.69,0.0005041,120]
[354778346,1740685849615,-500.0,0.0005041,120]
[354778347,1740685849625,-500.0,0.0005041,120]
[354778348,1740685849634,-1068.99,0.0005041,120]
[354778349,1740685849644,-500.0,0.0005041,120]
[354778350,1740685849653,-500.0,0.0005041,120]
[354778351,1740685849663,-500.0,0.0005041,120]
[354778352,1740685849672,-899.05,0.0005041,120]
[354778353,1740685849681,-500.0,0.0005041,120]
[354778354,1740685849691,-500.0,0.0005041,120]
[354778355,1740685849700,-500.0,0.0005041,120]
[354778356,1740685849709,-604.6,0.0005041,120]
[354778357,1740685849718,-423.58,0.0005041,120]
[354778358,1740685849727,-500.0,0.0005041,120]
[354778359,1740685849736,-577.23,0.0005041,120]
[354778360,1740685849745,-500.0,0.0005041,120]
[354778361,1740685849754,-500.0,0.0005041,120]
[354778362,1740685849767,-1460.97,0.0005041,120]
[354778363,1740685849777,-500.0,0.0005041,120]
[354778364,1740685849787,-238.32555845,0.0005041,120]
[354778365,1740685849796,-906.67,0.0005041,120]
[354778366,1740685849805,-500.0,0.0005041,120]
[354778367,1740685849815,-874.77,0.0005041,120]
[354778368,1740685849825,-500.0,0.0005041,120]
[354778369,1740685849835,-500.0,0.0005041,120]
[354778370,1740685849845,-9146.17,0.0005041,6]
[354778371,1740685849854,-500.0,0.0005041,120]
[354778372,1740685849864,-500.0,0.0005041,120]
[354778373,1740685849874,-551.03,0.0005041,120]
[354778374,1740685849883,-2452.99,0.0005041,120]
[354778375,1740685849892,-500.0,0.0005041,120]
[354778376,1740685849901,-875.16,0.0005041,120]
[354778377,1740685849910,-500.0,0.0005041,120]
[354778378,1740685849920,-2346.79,0.0005041,120]
[354778379,1740685849929,-500.0,0.0005041,120]
[354778380,1740685849939,-713.69,0.0005041,120]
[354778381,1740685849948,-500.0,0.0005041,120]
[354778382,1740685849957,-500.0,0.0005041,120]
[354778383,1740685849966,-2847.46,0.0005041,120]
[354778384,1740685849975,-500.0,0.0005041,120]
[354778385,1740685849985,-500.0,0.0005041,120]
[354778386,1740685849994,-500.0,0.0005041,120]
[354778387,1740685850003,-1019.41,0.0005041,120]
[354778388,1740685850015,-620.31,0.0005041,120]
[354778389,1740685850024,-500.0,0.0005041,120]
[354778390,1740685850034,-6222.02,0.0005041,120]
[354778391,1740685850043,-5686.45,0.0005041,120]
[354778392,1740685850052,-500.0,0.0005041,120]
[354778393,1740685850061,-500.0,0.0005041,120]
[354778394,1740685850070,-524.55,0.0005041,120]
[354778395,1740685850081,-6530.44,0.0005041,120]
[354778396,1740685850092,-1263.78,0.0005041,120]
[354778397,1740685850103,-1699.71,0.0005041,120]
[354778398,1740685850113,-500.0,0.0005041,120]
[354778399,1740685850131,-500.0,0.0005041,120]
[354778400,1740685850142,-3322.36,0.0005041,120]
[354778401,1740685850154,-539.36,0.0005041,120]
[354778402,1740685850165,-500.0,0.0005041,120]
[354778403,1740685850176,-606.98,0.0005041,120]
[354778404,1740685850187,-500.0,0.0005041,120]
[354778405,1740685850197,-2063.97,0.0005041,120]
[354778406,1740685850207,-500.0,0.0005041,120]
[354778407,1740685850217,-500.0,0.0005041,120]
[354778408,1740685850227,-585.15,0.0005041,120]
[354778409,1740685850237,-500.0,0.0005041,120]
[354778410,1740685850247,-1406.16,0.0005041,120]
[354778411,1740685850262,-6866.34095827,0.0005041,7]
[354778412,1740685850406,-392.05820503,0.00049863,120]
[354778413,1740685850417,-83.11179497,0.00049863,120]
[354778414,1740685850427,-321.33100159,0.0005041,7]
[354778415,1740685850600,-838.7,0.0005041,7]
[354778416,1740685850611,-947.67,0.0005041,7]
[354778420,1740686582452,-150.0,0.00040796,120]
[354778421,1740686583007,-150.0,0.00032877,2]
[354778422,1740686761185,-30.401023,0.00032877,2]
[354778423,1740686761208,-119.598977,0.00038696,2]
[354778424,1740686764318,-30.401023,0.00038696,2]
[354778425,1740686764505,-119.598977,0.00040795,5]
[354778426,1740686766011,-140.91204626,0.00040796,120]
[354778427,1740686766038,-9.08795374,0.00042081,120]
[354778428,1740686769085,-150.0,0.00042081,120]
[354778429,1740686769714,-150.0,0.00042081,120]
[354778430,1740686770178,-150.0,0.00040795,5]
[354778431,1740686773321,-150.0,0.00040795,5]
[354778432,1740686776837,-7.28302466,0.00042081,120]
[354778433,1740686776860,-142.71697534,0.000423,10]
[354778434,1740686777503,-130.401023,0.00040795,5]
[354778435,1740686781619,-150.0,0.00048,90]
[354778436,1740686796315,-150.0,0.000423,10]
[354778437,1740686797661,-2.0,0.00048,90]
[354778438,1740686801280,-150.0,0.000422,28]
[354778439,1740686802945,-150.0,0.000422,28]
[354778440,1740686803973,-150.0,0.000422,28]
[354778441,1740686805086,-150.0,0.000422,28]
[354778442,1740686806143,-150.0,0.000422,28]
[354778443,1740686807342,-150.0,0.000422,28]
[354778444,1740686808358,-150.0,0.000422,28]
[354778445,1740686809440,-150.0,0.000422,28]
[354778446,1740686810448,-150.0,0.000422,28]
[354778447,1740686811083,-150.0,0.000422,28]
[354778448,1740686812209,-150.0,0.000422,28]
[354778449,1740686813305,-150.0,0.000422,28]
[354778450,1740686821751,-150.0,0.000422,28]
[354778451,1740686822815,-150.0,0.000422,28]
[354778452,1740686823869,-150.0,0.000422,28]
[354778453,1740686827312,-150.0,0.000422,28]
[354778454,1740686828555,-150.0,0.00040795,5]
[354778455,1740686829157,-150.0,0.000422,28]
[354778456,1740686830871,-124.18314739,0.000422,28]
[354778457,1740686850873,25.81685261,0.00042144,120]
[354778531,1740687032279,-685.757784,0.00037513,2]
[354778532,1740687032289,-480.7296782,0.00037742,2]
[354778533,1740687032298,-763.5525378,0.00040796,2]
[354778534,1740687032333,-4554.29346248,0.00040796,2]
[354778535,1740687032343,-1168.27137829,0.00042144,120]
[354778536,1740687032352,-2339.91025394,0.000422,28]
[354778537,1740687032361,-15925.52052139,0.00042244,2]
[354778946,1740687043579,-8974.47947861,0.00042244,2]
[354778948,1740687043588,-500.0,0.000423,7]
[354778949,1740687043598,-207.28302466,0.000423,10]
[354778950,1740687043608,-255.73516113,0.000423,5]
[354778951,1740687043617,-160.0,0.00042377,2]
[354778952,1740687043627,-19607.61712864,0.00042398,2]
[354778953,1740687043637,-205.34500362,0.000429,9]
[354778954,1740687043647,-1234.7479667,0.00042934,2]
[354778955,1740687043657,-150.0,0.00043696,2]
[354778956,1740687043670,-8576.3050729,0.0004382,2]
[354778957,1740687043679,-205.34500362,0.000459,10]
[354778958,1740687043688,-1000.0,0.00047779,7]
[354778959,1740687043698,-500.0,0.00047779,10]
[354778960,1740687043710,-2339.91025391,0.000483,28]
[354778961,1740687043720,-3434.04555102,0.000485,120]
[354778962,1740687043729,-205.34500362,0.000489,11]
[354778963,1740687043740,-500.0,0.00049041,10]
[354778964,1740687043750,-152.58021793,0.00049215,2]
[354778965,1740687043759,-250.8995612,0.00049303,4]
[354778966,1740687043769,-16850.35,0.00049314,120]
[354778967,1740687043778,-500.0,0.00049315,120]
[354778968,1740687043788,-500.0,0.00049315,120]
[354778969,1740687043797,-500.0,0.00049315,120]
[354778970,1740687043806,-500.0,0.00049315,120]
[354778971,1740687043816,-500.0,0.00049315,120]
[354778972,1740687043826,-500.0,0.00049315,120]
[354778973,1740687043835,-510.53170991,0.00049315,120]
[354778974,1740687043845,-500.0,0.00049315,120]
[354778975,1740687043855,-603.19390051,0.00049315,120]
[354778976,1740687043864,-500.0,0.00049315,120]
[354778977,1740687043874,-500.0,0.00049315,120]
[354778978,1740687043883,-501.41385,0.00049315,120]
[354778979,1740687043892,-500.0,0.00049315,120]
[354778980,1740687043902,-500.0,0.00049315,120]
[354778981,1740687043911,-255.48077756,0.00049315,120]
[354778982,1740687043928,-244.51922244,0.00049315,120]
[354778983,1740687043938,-164.61967699,0.00049315,120]
[354778984,1740687043976,-339.16027832,0.00049315,120]
[354778985,1740687043986,-500.0,0.00049315,120]
[354778986,1740687043996,-500.0,0.00049315,120]
[354778987,1740687044005,-500.0,0.00049315,120]
[354778989,1740687044014,-248.33972168,0.00049315,120]
[354779063,1740687046620,-251.66027832,0.00049315,120]
[354779064,1740687046629,-500.0,0.00049315,120]
[354779065,1740687046639,-500.0,0.00049315,120]
[354779066,1740687046649,-500.0,0.00049315,120]
[354779067,1740687046658,-500.0,0.00049315,120]
[354779068,1740687046671,-500.0,0.00049315,120]
[354779069,1740687046680,-500.0,0.00049315,120]
[354779070,1740687046690,-500.0,0.00049315,120]
[354779071,1740687046699,-900.08,0.00049315,120]
[354779072,1740687046708,-500.0,0.00049315,120]
[354779073,1740687046717,-500.0,0.00049315,120]
[354779074,1740687046726,-500.0,0.00049315,120]
[354779075,1740687046736,-500.0,0.00049315,120]
[354779076,1740687046747,-500.0,0.00049315,120]
[354779077,1740687046756,-500.0,0.00049315,120]
[354779078,1740687046765,-601.99,0.00049315,120]
[354779079,1740687046775,-805.08,0.00049315,120]
[354779080,1740687046784,-500.0,0.00049315,120]
[354779081,1740687046794,-500.0,0.00049315,120]
[354779082,1740687046804,-674.96,0.00049315,120]
[354779083,1740687046813,-500.0,0.00049315,120]
[354779084,1740687046822,-500.0,0.00049315,120]
[354779085,1740687046832,-608.5073072,0.00049315,120]
[354779086,1740687046841,-507.71,0.00049315,120]
[354779087,1740687046850,-500.0,0.00049315,120]
[354779088,1740687046859,-500.0,0.00049315,120]
[354779089,1740687046869,-526.71,0.00049315,120]
[354779090,1740687046882,-500.0,0.00049315,120]
[354779091,1740687046891,-500.0,0.00049315,120]
[354779092,1740687046901,-898.99,0.00049315,120]
[354779093,1740687046910,-500.0,0.00049315,120]
[354779094,1740687046919,-500.0,0.00049315,120]
[354779095,1740687046928,-500.0,0.00049315,120]
[354779096,1740687046938,-500.0,0.00049315,120]
[354779097,1740687046947,-500.0,0.00049315,120]
[354779098,1740687046956,-500.0,0.00049315,120]
[354779099,1740687046966,-500.0,0.00049315,120]
[354779100,1740687046976,-500.0,0.00049315,120]
[354779101,1740687046985,-607.31,0.00049315,120]
[354779102,1740687046995,-150.1,0.00049315,120]
[354779103,1740687047005,-500.0,0.00049315,120]
[354779104,1740687047014,-500.0,0.00049315,120]
[354779105,1740687047023,-500.0,0.00049315,120]
[354779106,1740687047032,-500.0,0.00049315,120]
[354779107,1740687047042,-500.0,0.00049315,120]
[354779108,1740687047051,-500.0,0.00049315,120]
[354779109,1740687047060,-500.0,0.00049315,120]
[354779110,1740687047070,-500.0,0.00049315,120]
[354779111,1740687047079,-500.0,0.00049315,120]
[354779112,1740687047089,-500.0,0.00049315,120]
[354779113,1740687047098,-500.0,0.00049315,15]
[354779114,1740687047108,-213.3722867,0.00049315,120]
[354779115,1740687047117,-500.0,0.00049315,120]
[354779116,1740687047126,-502.09228693,0.00049315,120]
[354779117,1740687047136,-500.0,0.00049315,120]
[354779118,1740687047145,-500.0,0.00049315,120]
[354779119,1740687047155,-500.0,0.00049315,120]
[354779120,1740687047163,-500.0,0.00049315,120]
[354779121,1740687047174,-500.0,0.00049315,120]
[354779122,1740687047184,-500.0,0.00049315,120]
[354779123,1740687047193,-606.68,0.00049315,120]
[354779124,1740687047202,-500.0,0.00049315,120]
[354779125,1740687047211,-500.0,0.00049315,120]
[354779126,1740687047220,-500.0,0.00049315,120]
[354779127,1740687047230,-500.0,0.00049315,120]
[354779128,1740687047239,-500.0,0.00049315,120]
[354779129,1740687047251,-500.0,0.00049315,120]
[354779130,1740687047260,-500.0,0.00049315,120]
[354779131,1740687047270,-500.0,0.00049315,120]
[354779132,1740687047279,-500.0,0.00049315,120]
[354779133,1740687047288,-500.0,0.00049315,120]
[354779134,1740687047298,-500.0,0.00049315,120]
[354779135,1740687047307,-500.0,0.00049315,120]
[354779136,1740687047316,-2020.90255727,0.00049315,120]
[354779137,1740687047325,-500.0,0.00049315,120]
[354779138,1740687047334,-371.54,0.00049315,120]
[354779139,1740687047349,-500.0,0.00049315,120]
[354779140,1740687047358,-500.0,0.00049315,120]
[354779141,1740687047368,-500.0,0.00049315,120]
[354779142,1740687047378,-523.44978379,0.00049315,120]
[354779143,1740687047387,-278.96,0.00049315,120]
[354779144,1740687047396,-379.33468811,0.00049315,120]
[354779145,1740687047405,-29910.38407942,0.00049315,7]
[354779146,1740687047419,-4175.0,0.00049315,7]
[354779147,1740687229632,1009.32285442,0.00027,10]
[354779148,1740687319677,150.952,0.00052635,120]
[354779149,1740687320216,150.0,0.00052635,120]
[354779150,1740687324695,1959.0,0.00052635,120]
[354779151,1740687325341,1919.0,0.00052635,120]
[354779152,1740687326033,556.06,0.00052635,120]
[354779153,1740687326553,539.0,0.00052635,120]
[354779154,1740687331551,2286.0,0.00052635,120]
[354779155,1740687332112,2280.0,0.00052635,120]
[354779156,1740687485971,-150.0,0.0004783,2]
[354779157,1740687495217,-150.0,0.0004783,2]
[354779158,1740687497487,-97.192,0.0004783,2]
[354779159,1740687598299,-150.0,0.00043324,2]
[354779160,1740687601940,-150.0,0.00043324,2]
[354779161,1740687606336,-150.0,0.00043323,5]
[354779162,1740687606905,-150.0,0.00043323,5]
[354779163,1740687607457,-150.0,0.00043323,5]
[354779164,1740687607969,-100.0,0.00043323,5]
[354779165,1740687607994,-50.0,0.00043324,2]
[354779166,1740687619475,-150.0,0.00043323,2]
[354779167,1740687621112,-95.0,0.00043323,2]
[354779168,1740687625283,-150.0,0.00043324,2]
[354779169,1740687630510,-150.0,0.00043324,2]
[354779170,1740687632671,-150.0,0.00043324,2]
[354779171,1740687633763,-150.0,0.00043324,2]
[354779172,1740687637272,-150.0,0.00043324,2]
[354779173,1740687640816,-150.0,0.00043324,2]
[354779174,1740687647609,-150.0,0.00043324,2]
[354779175,1740687649274,-150.0,0.00043324,2]
[354779176,1740687650300,-150.0,0.00043324,2]
[354779177,1740687651336,-150.0,0.00043324,2]
[354779178,1740687652494,-150.0,0.00043324,2]
[354779179,1740687653850,-150.0,0.00043324,2]
[354779180,1740687657577,-150.0,0.00043324,2]
[354779181,1740687658108,-150.0,0.00045951,120]
[354779182,1740687662170,-150.0,0.00043324,2]
[354779183,1740687665762,-150.0,0.00045951,120]
[354779184,1740687666814,-150.0,0.00043323,5]
[354779185,1740687667438,-150.0,0.00043323,5]
[354779186,1740687671142,-150.0,0.00045951,120]
[354779187,1740687672231,-150.0,0.00043323,5]
[354779188,1740687673906,-82.0,0.00043323,5]
[354779189,1740687682429,-150.0,0.00045951,120]
[354779190,1740687684478,-150.0,0.000459,10]
[354779191,1740687688042,-150.0,0.00045951,120]
[354779192,1740687694744,-56.41647601,0.000459,10]
[354779193,1740687698515,-150.0,0.00045951,120]
[354779194,1740687703037,-55.27058472,0.00045951,120]
[354779195,1740687724284,-150.0,0.00043324,2]
[354779196,1740687727770,-150.0,0.00043324,2]
[354779197,1740687731365,-150.0,0.00043324,2]
[354779198,1740687735482,-150.0,0.00043324,2]
[354779199,1740687739064,-150.0,0.00043324,2]
[354779200,1740687742624,-150.0,0.00043324,2]
[354779201,1740687748605,-150.0,0.00043324,2]
[354779202,1740687749654,-150.0,0.00043324,2]
[354779203,1740687750727,-150.0,0.00043324,2]
[354779204,1740687751826,-150.0,0.00043324,2]
[354779205,1740687752883,-150.0,0.00043324,2]
[354779206,1740687754145,-150.0,0.00043324,2]
[354779207,1740687757656,-150.0,0.00043324,2]
[354779208,1740687759083,-150.0,0.00043324,2]
[354779209,1740687760293,-150.0,0.00043324,2]
[354779219,1740688112949,10565.65676583,0.00052656,120]
[354779220,1740688114035,1809.60539458,0.00052656,60]
[354779221,1740688115153,19962.22333077,0.00052656,32]
[354779222,1740688115955,1041.32243669,0.00052656,120]
[354779223,1740688116519,1264.69886397,0.00052656,90]
[354779224,1740688116641,930.22701644,0.00052656,120]
[354779225,1740688116889,11925.0,0.00052656,120]
[354779226,1740688116934,2000.0,0.00052656,120]
[354779227,1740688117519,1078.62179305,0.00052656,120]
[354779228,1740688117636,6521.17348064,0.00052656,120]
[354779229,1740688118000,213.76294435,0.00052656,30]
[354779230,1740688118799,150.22781628,0.0002,7]
[354779232,1740688153139,-150.0,0.0002871,2]
[354779233,1740688153162,-5850.57038663,0.00029,2]
[354779251,1740688232372,-6548.57453625,0.00029,2]
[354779252,1740688232417,-27319.52654171,0.00029,2]
[354779270,1740688238262,-1015.9999994,0.00029,2]
[354779271,1740688238320,-4876.96065857,0.00029,2]
[354779272,1740688238331,-9229.88,0.00029,2]
[354779295,1740688241272,-929.06,0.00029,2]
[354779296,1740688241283,-438.40910619,0.00029,2]
[354779297,1740688241299,-65683.25045587,0.00029,2]
[354779298,1740688241309,-411.27,0.00029,7]
[354779299,1740688241318,-500.0,0.00029,5]
[354779300,1740688241327,-342.878892,0.00029068,2]
[354779301,1740688241337,-268.0,0.0003,2]
[354779302,1740688241346,-289.90411815,0.00033253,2]
[354779303,1740688241355,-175.23000215,0.00040015,2]
[354779304,1740688241364,-1817.29900152,0.00041153,28]